[Event "Titled Tuesday Blitz November 01 Late 2022"]
[White "Roman, Rodrigo"]
[Black "Kanyamarala, Tarun"]
[WhiteFideId "3701220"]
[BlackFideId "45004714"]
[WhiteElo "2001"]
[BlackElo "2307"]
[Result "0-1"]
[Round "08"]
[TimeControl "180+1"]
[Date "2022.11.02"]
[WhiteClock "0:00:01"]
[BlackClock "0:00:30"]

1. e4 {[%clk 0:03:00]}  c5 {[%clk 0:02:59]} 2. Nf3 {[%clk 0:03:01]}  e6 {[%clk 0:03:00]} 3. d4 {[%clk 0:02:59]}  cxd4 {[%clk 0:03:01]} 4. Nxd4 {[%clk 0:03:00]}  a6 {[%clk 0:03:02]} 5. Nc3 {[%clk 0:03:00]}  b5 {[%clk 0:03:01]} 6. a3 {[%clk 0:03:01]}  Bb7 {[%clk 0:02:59]} 7. g3 {[%clk 0:03:01]}  Nc6 {[%clk 0:02:55]} 8. Bg2 {[%clk 0:03:01]}  Nxd4 {[%clk 0:02:25]} 9. Qxd4 {[%clk 0:02:59]}  Qc8 {[%clk 0:02:23]} 10. Be3 {[%clk 0:02:40]}  Nf6 {[%clk 0:02:22]} 11. f3 {[%clk 0:02:39]}  Be7 {[%clk 0:02:19]} 12. Rd1 {[%clk 0:02:38]}  O-O {[%clk 0:02:18]} 13. O-O {[%clk 0:02:36]}  d5 {[%clk 0:02:18]} 14. f4 {[%clk 0:02:30]}  Nxe4 {[%clk 0:02:14]} 15. Nxe4 {[%clk 0:02:26]}  dxe4 {[%clk 0:02:15]} 16. Bxe4 {[%clk 0:02:25]}  Bf6 {[%clk 0:02:14]} 17. Bxb7 {[%clk 0:02:08]}  Bxd4 {[%clk 0:02:13]} 18. Bxc8 {[%clk 0:02:08]}  Bxe3+ {[%clk 0:02:13]} 19. Kg2 {[%clk 0:02:08]}  Raxc8 {[%clk 0:02:13]} 20. c3 {[%clk 0:02:09]}  Bc5 {[%clk 0:02:11]} 21. Rd7 {[%clk 0:02:09]}  Rfd8 {[%clk 0:02:09]} 22. Rfd1 {[%clk 0:02:09]}  Bb6 {[%clk 0:02:08]} 23. Kf3 {[%clk 0:02:06]}  Kf8 {[%clk 0:02:08]} 24. Ke2 {[%clk 0:01:59]}  Ke8 {[%clk 0:02:06]} 25. R7d6 {[%clk 0:02:00]}  Rb8 {[%clk 0:02:01]} 26. h4 {[%clk 0:01:41]}  Ke7 {[%clk 0:02:01]} 27. Rxd8 {[%clk 0:01:25]}  Rxd8 {[%clk 0:02:00]} 28. Rh1 {[%clk 0:01:25]}  h5 {[%clk 0:01:59]} 29. Ra1 {[%clk 0:01:22]}  Rb8 {[%clk 0:01:37]} 30. a4 {[%clk 0:01:23]}  Bc5 {[%clk 0:01:35]} 31. b4 {[%clk 0:01:17]}  Bd6 {[%clk 0:01:34]} 32. axb5 {[%clk 0:01:17]}  axb5 {[%clk 0:01:34]} 33. Ra7+ {[%clk 0:01:17]}  Kf6 {[%clk 0:01:34]} 34. Kd3 {[%clk 0:01:18]}  g6 {[%clk 0:01:31]} 35. Ke4 {[%clk 0:01:17]}  Rc8 {[%clk 0:01:30]} 36. Kd3 {[%clk 0:01:15]}  Bf8 {[%clk 0:01:30]} 37. Rb7 {[%clk 0:01:15]}  Rd8+ {[%clk 0:01:26]} 38. Ke3 {[%clk 0:01:07]}  Rd1 {[%clk 0:01:23]} 39. Rxb5 {[%clk 0:01:06]}  Rg1 {[%clk 0:01:23]} 40. Kf2 {[%clk 0:01:06]}  Rc1 {[%clk 0:01:23]} 41. Rb8 {[%clk 0:01:04]}  Be7 {[%clk 0:01:17]} 42. Rc8 {[%clk 0:01:02]}  Bxb4 {[%clk 0:01:17]} 43. c4 {[%clk 0:01:03]}  Kf5 {[%clk 0:01:13]} 44. Rc7 {[%clk 0:00:57]}  f6 {[%clk 0:01:13]} 45. Rc6 {[%clk 0:00:56]}  e5 {[%clk 0:01:08]} 46. fxe5 {[%clk 0:00:56]}  fxe5 {[%clk 0:01:08]} 47. Rc7 {[%clk 0:00:53]}  Bc3 {[%clk 0:01:08]} 48. Rf7+ {[%clk 0:00:50]}  Ke4 {[%clk 0:01:06]} 49. Rg7 {[%clk 0:00:50]}  Bd4+ {[%clk 0:01:06]} 50. Ke2 {[%clk 0:00:49]}  Kf5 {[%clk 0:01:04]} 51. Rc7 {[%clk 0:00:47]}  Rc3 {[%clk 0:01:04]} 52. Kd2 {[%clk 0:00:40]}  Rxg3 {[%clk 0:01:03]} 53. c5 {[%clk 0:00:41]}  Ke4 {[%clk 0:01:04]} 54. c6 {[%clk 0:00:41]}  Rg2+ {[%clk 0:01:04]} 55. Kd1 {[%clk 0:00:41]}  Be3 {[%clk 0:00:58]} 56. Rd7 {[%clk 0:00:37]}  Rg1+ {[%clk 0:00:57]} 57. Ke2 {[%clk 0:00:34]}  Rc1 {[%clk 0:00:57]} 58. c7 {[%clk 0:00:34]}  Rc2+ {[%clk 0:00:56]} 59. Kd1 {[%clk 0:00:30]}  Rc6 {[%clk 0:00:55]} 60. Ke2 {[%clk 0:00:30]}  Bd4 {[%clk 0:00:48]} 61. Rg7 {[%clk 0:00:26]}  Bc3 {[%clk 0:00:34]} 62. Rxg6 {[%clk 0:00:19]}  Rxc7 {[%clk 0:00:33]} 63. Rh6 {[%clk 0:00:20]}  Bd4 {[%clk 0:00:31]} 64. Rxh5 {[%clk 0:00:21]}  Rc2+ {[%clk 0:00:31]} 65. Kd1 {[%clk 0:00:22]}  Rh2 {[%clk 0:00:31]} 66. Rh7 {[%clk 0:00:20]}  Kd3 {[%clk 0:00:32]} 67. Ke1 {[%clk 0:00:01]}  Rh1# {[%clk 0:00:30]} 0-1


[Site "https://www.chess.com"]

[Event "Titled Tuesday Blitz November 01 Late 2022"]
[White "Rose, Felix"]
[Black "Tan, Ralph"]
[WhiteFideId "5105722"]
[BlackFideId "30966590"]
[WhiteElo "2039"]
[BlackElo "2059"]
[Result "0-1"]
[Round "08"]
[TimeControl "180+1"]
[Date "2022.11.02"]
[WhiteClock "0:00:15"]
[BlackClock "0:00:10"]

1. e4 {[%clk 0:03:00]}  e6 {[%clk 0:02:59]} 2. d4 {[%clk 0:03:00]}  d5 {[%clk 0:03:00]} 3. Nc3 {[%clk 0:02:58]}  Nf6 {[%clk 0:03:00]} 4. e5 {[%clk 0:02:59]}  Nfd7 {[%clk 0:03:00]} 5. f4 {[%clk 0:03:00]}  c5 {[%clk 0:03:00]} 6. Nf3 {[%clk 0:03:00]}  Nc6 {[%clk 0:03:00]} 7. Be3 {[%clk 0:03:01]}  a6 {[%clk 0:03:00]} 8. Qd2 {[%clk 0:02:57]}  cxd4 {[%clk 0:02:57]} 9. Nxd4 {[%clk 0:02:57]}  Bc5 {[%clk 0:02:57]} 10. O-O-O {[%clk 0:02:56]}  Nxd4 {[%clk 0:02:53]} 11. Bxd4 {[%clk 0:02:57]}  b5 {[%clk 0:02:53]} 12. h4 {[%clk 0:02:55]}  b4 {[%clk 0:02:44]} 13. Ne2 {[%clk 0:02:52]}  a5 {[%clk 0:02:34]} 14. Bxc5 {[%clk 0:02:52]}  Nxc5 {[%clk 0:02:34]} 15. Nd4 {[%clk 0:02:53]}  O-O {[%clk 0:02:30]} 16. Bd3 {[%clk 0:02:49]}  Qb6 {[%clk 0:02:16]} 17. Kb1 {[%clk 0:02:48]}  a4 {[%clk 0:02:11]} 18. Rh3 {[%clk 0:02:38]}  b3 {[%clk 0:02:01]} 19. cxb3 {[%clk 0:02:37]}  axb3 {[%clk 0:02:02]} 20. a3 {[%clk 0:02:38]}  Ba6 {[%clk 0:01:25]} 21. Bxa6 {[%clk 0:02:25]}  Rxa6 {[%clk 0:01:24]} 22. Rc1 {[%clk 0:02:10]}  Ne4 {[%clk 0:01:18]} 23. Qe3 {[%clk 0:02:06]}  Rb8 {[%clk 0:00:52]} 24. Rc6 {[%clk 0:01:52]}  Qa5 {[%clk 0:00:37]} 25. Rxa6 {[%clk 0:01:45]}  Qxa6 {[%clk 0:00:36]} 26. Qd3 {[%clk 0:01:07]}  Qa5 {[%clk 0:00:26]} 27. Rh1 {[%clk 0:00:51]}  Nf2 {[%clk 0:00:26]} 28. Nc6 {[%clk 0:00:34]}  Qb6 {[%clk 0:00:18]} 29. Qf1 {[%clk 0:00:26]}  Nxh1 {[%clk 0:00:14]} 30. Nxb8 {[%clk 0:00:25]}  Ng3 {[%clk 0:00:13]} 31. Qe1 {[%clk 0:00:22]}  Ne4 {[%clk 0:00:12]} 32. Nd7 {[%clk 0:00:21]}  Qc6 {[%clk 0:00:11]} 33. Nb8 {[%clk 0:00:14]}  Qb7 {[%clk 0:00:10]} 34. Qb4 {[%clk 0:00:13]}  Qc7 {[%clk 0:00:09]} 35. Nc6 {[%clk 0:00:11]}  h6 {[%clk 0:00:08]} 36. Qb8+ {[%clk 0:00:12]}  Qxb8 {[%clk 0:00:09]} 37. Nxb8 {[%clk 0:00:12]}  Kf8 {[%clk 0:00:05]} 38. Nc6 {[%clk 0:00:11]}  Ke8 {[%clk 0:00:05]} 39. Nd4 {[%clk 0:00:10]}  Nc5 {[%clk 0:00:05]} 40. Kc1 {[%clk 0:00:10]}  Kd7 {[%clk 0:00:06]} 41. Kd2 {[%clk 0:00:10]}  Kc7 {[%clk 0:00:06]} 42. Kc3 {[%clk 0:00:11]}  Kb6 {[%clk 0:00:06]} 43. Nxb3 {[%clk 0:00:11]}  Ne4+ {[%clk 0:00:07]} 44. Kd4 {[%clk 0:00:12]}  Ng3 {[%clk 0:00:04]} 45. Nc1 {[%clk 0:00:11]}  Nf5+ {[%clk 0:00:04]} 46. Kd3 {[%clk 0:00:10]}  Nxh4 {[%clk 0:00:05]} 47. b4 {[%clk 0:00:10]}  Nxg2 {[%clk 0:00:05]} 48. a4 {[%clk 0:00:11]}  Nxf4+ {[%clk 0:00:05]} 49. Kd4 {[%clk 0:00:11]}  h5 {[%clk 0:00:05]} 50. Nd3 {[%clk 0:00:10]}  Nxd3 {[%clk 0:00:04]} 51. Kxd3 {[%clk 0:00:11]}  h4 {[%clk 0:00:05]} 52. Ke3 {[%clk 0:00:11]}  h3 {[%clk 0:00:06]} 53. a5+ {[%clk 0:00:12]}  Kb5 {[%clk 0:00:06]} 54. Kf2 {[%clk 0:00:12]}  g5 {[%clk 0:00:06]} 55. Kg3 {[%clk 0:00:13]}  g4 {[%clk 0:00:06]} 56. Kh2 {[%clk 0:00:13]}  d4 {[%clk 0:00:07]} 57. Kg3 {[%clk 0:00:14]}  d3 {[%clk 0:00:07]} 58. Kf2 {[%clk 0:00:14]}  d2 {[%clk 0:00:08]} 59. Ke2 {[%clk 0:00:13]}  h2 {[%clk 0:00:08]} 60. Kxd2 {[%clk 0:00:13]}  h1=Q {[%clk 0:00:09]} 61. a6 {[%clk 0:00:14]}  Qa8 {[%clk 0:00:09]} 62. a7 {[%clk 0:00:15]}  Qxa7 {[%clk 0:00:10]} 0-1


[Site "https://www.chess.com"]

[Event "Titled Tuesday Blitz November 01 Late 2022"]
[White "Rustemov, Alexander"]
[Black "Gorodetzky, David"]
[WhiteFideId "4119002"]
[BlackFideId "2813416"]
[WhiteElo "2923"]
[BlackElo "2487"]
[Result "1-0"]
[Round "08"]
[TimeControl "180+1"]
[Date "2022.11.01"]
[WhiteClock "0:00:46"]
[BlackClock "0:00:02"]

1. d4 {[%clk 0:03:00]}  Nf6 {[%clk 0:02:58]} 2. c4 {[%clk 0:03:00]}  b6 {[%clk 0:02:58]} 3. f3 {[%clk 0:03:00]}  Nc6 {[%clk 0:02:57]} 4. e4 {[%clk 0:02:58]}  e5 {[%clk 0:02:56]} 5. Ne2 {[%clk 0:02:40]}  Bb4+ {[%clk 0:02:31]} 6. Bd2 {[%clk 0:02:40]}  exd4 {[%clk 0:01:53]} 7. Bxb4 {[%clk 0:02:37]}  Nxb4 {[%clk 0:01:54]} 8. Nxd4 {[%clk 0:02:30]}  O-O {[%clk 0:01:53]} 9. Nc3 {[%clk 0:02:28]}  Bb7 {[%clk 0:01:50]} 10. Qd2 {[%clk 0:02:25]}  d6 {[%clk 0:01:46]} 11. Be2 {[%clk 0:02:23]}  Re8 {[%clk 0:01:44]} 12. O-O {[%clk 0:02:16]}  Nc6 {[%clk 0:01:41]} 13. Nf5 {[%clk 0:02:10]}  Ne7 {[%clk 0:01:37]} 14. Ne3 {[%clk 0:02:09]}  Ng6 {[%clk 0:01:36]} 15. Rad1 {[%clk 0:02:04]}  Nf4 {[%clk 0:01:32]} 16. Rfe1 {[%clk 0:01:59]}  Nxe2+ {[%clk 0:01:29]} 17. Rxe2 {[%clk 0:01:58]}  Re6 {[%clk 0:01:27]} 18. Nf5 {[%clk 0:01:54]}  Qf8 {[%clk 0:01:15]} 19. Nd5 {[%clk 0:01:49]}  Rc8 {[%clk 0:00:59]} 20. Nd4 {[%clk 0:01:41]}  Bxd5 {[%clk 0:00:52]} 21. cxd5 {[%clk 0:01:40]}  Ree8 {[%clk 0:00:45]} 22. g3 {[%clk 0:01:36]}  g6 {[%clk 0:00:43]} 23. Kg2 {[%clk 0:01:36]}  a5 {[%clk 0:00:36]} 24. Rc1 {[%clk 0:01:34]}  Nd7 {[%clk 0:00:36]} 25. b3 {[%clk 0:01:33]}  h5 {[%clk 0:00:22]} 26. a3 {[%clk 0:01:33]}  Qg7 {[%clk 0:00:16]} 27. h4 {[%clk 0:01:30]}  Qf6 {[%clk 0:00:10]} 28. b4 {[%clk 0:01:26]}  axb4 {[%clk 0:00:10]} 29. axb4 {[%clk 0:01:27]}  Ne5 {[%clk 0:00:11]} 30. Qg5 {[%clk 0:01:17]}  Qg7 {[%clk 0:00:09]} 31. Qe3 {[%clk 0:01:11]}  Re7 {[%clk 0:00:06]} 32. Rec2 {[%clk 0:01:10]}  Ra8 {[%clk 0:00:06]} 33. Rxc7 {[%clk 0:01:09]}  Rxc7 {[%clk 0:00:07]} 34. Rxc7 {[%clk 0:01:09]}  Ra2+ {[%clk 0:00:07]} 35. Rc2 {[%clk 0:01:09]}  Nc4 {[%clk 0:00:05]} 36. Qd3 {[%clk 0:01:01]}  Rxc2+ {[%clk 0:00:05]} 37. Nxc2 {[%clk 0:01:01]}  b5 {[%clk 0:00:03]} 38. Nd4 {[%clk 0:01:01]}  Ne5 {[%clk 0:00:02]} 39. Qc3 {[%clk 0:00:59]}  Qf6 {[%clk 0:00:02]} 40. Nxb5 {[%clk 0:00:59]}  Qd8 {[%clk 0:00:02]} 41. Nd4 {[%clk 0:00:57]}  Qa8 {[%clk 0:00:03]} 42. Qd2 {[%clk 0:00:50]}  Qa3 {[%clk 0:00:02]} 43. Nc6 {[%clk 0:00:46]}  Nc4 {[%clk 0:00:02]} 44. Qe2 {[%clk 0:00:45]}  Ne3+ {[%clk 0:00:02]} 45. Kf2 {[%clk 0:00:46]} 1-0


[Site "https://www.chess.com"]

[Event "Titled Tuesday Blitz November 01 Late 2022"]
[White "Santos Flores, Alberto"]
[Black "Arnold, Ken"]
[WhiteFideId "3601234"]
[BlackFideId "2056836"]
[WhiteElo "2235"]
[BlackElo "2321"]
[Result "1/2-1/2"]
[Round "08"]
[TimeControl "180+1"]
[Date "2022.11.02"]
[WhiteClock "0:00:59"]
[BlackClock "0:00:45"]

1. e4 {[%clk 0:03:00]}  c6 {[%clk 0:02:57]} 2. d4 {[%clk 0:02:59]}  d5 {[%clk 0:02:57]} 3. Nc3 {[%clk 0:02:59]}  dxe4 {[%clk 0:02:57]} 4. Nxe4 {[%clk 0:03:00]}  Bf5 {[%clk 0:02:57]} 5. Ng3 {[%clk 0:03:00]}  Bg6 {[%clk 0:02:57]} 6. h4 {[%clk 0:03:00]}  h6 {[%clk 0:02:57]} 7. Nf3 {[%clk 0:03:01]}  Nd7 {[%clk 0:02:57]} 8. h5 {[%clk 0:03:00]}  Bh7 {[%clk 0:02:57]} 9. Bd3 {[%clk 0:03:01]}  Ngf6 {[%clk 0:02:57]} 10. Bxh7 {[%clk 0:02:59]}  Nxh7 {[%clk 0:02:57]} 11. Bf4 {[%clk 0:02:56]}  e6 {[%clk 0:02:57]} 12. Qd2 {[%clk 0:02:51]}  Be7 {[%clk 0:02:55]} 13. O-O-O {[%clk 0:02:47]}  Ng5 {[%clk 0:02:52]} 14. Ne5 {[%clk 0:02:44]}  Nxe5 {[%clk 0:02:50]} 15. Bxe5 {[%clk 0:02:44]}  Bf6 {[%clk 0:02:44]} 16. f4 {[%clk 0:02:42]}  Nh7 {[%clk 0:02:43]} 17. Ne4 {[%clk 0:02:34]}  O-O {[%clk 0:02:28]} 18. g4 {[%clk 0:02:24]}  Bxe5 {[%clk 0:02:22]} 19. fxe5 {[%clk 0:02:17]}  Ng5 {[%clk 0:02:22]} 20. Nxg5 {[%clk 0:02:12]}  Qxg5 {[%clk 0:02:21]} 21. Qxg5 {[%clk 0:02:12]}  hxg5 {[%clk 0:02:21]} 22. c3 {[%clk 0:02:10]}  Kh7 {[%clk 0:02:12]} 23. Rhf1 {[%clk 0:02:09]}  Rad8 {[%clk 0:02:07]} 24. Rf3 {[%clk 0:02:07]}  Rd7 {[%clk 0:02:07]} 25. Rdf1 {[%clk 0:02:04]}  Kg8 {[%clk 0:02:07]} 26. b4 {[%clk 0:02:00]}  a5 {[%clk 0:02:05]} 27. a3 {[%clk 0:01:57]}  axb4 {[%clk 0:02:05]} 28. axb4 {[%clk 0:01:57]}  Ra8 {[%clk 0:02:04]} 29. Kb2 {[%clk 0:01:58]}  b6 {[%clk 0:02:02]} 30. Ra1 {[%clk 0:01:56]}  Rxa1 {[%clk 0:02:02]} 31. Kxa1 {[%clk 0:01:57]}  Ra7+ {[%clk 0:02:02]} 32. Kb2 {[%clk 0:01:57]}  Kf8 {[%clk 0:02:02]} 33. Rf1 {[%clk 0:01:48]}  Ke7 {[%clk 0:01:49]} 34. Ra1 {[%clk 0:01:48]}  Rxa1 {[%clk 0:01:42]} 35. Kxa1 {[%clk 0:01:49]}  f5 {[%clk 0:01:35]} 36. exf6+ {[%clk 0:01:47]}  gxf6 {[%clk 0:01:35]} 37. Kb2 {[%clk 0:01:43]}  f5 {[%clk 0:01:33]} 38. gxf5 {[%clk 0:01:40]}  exf5 {[%clk 0:01:11]} 39. Kc2 {[%clk 0:01:39]}  b5 {[%clk 0:00:59]} 40. c4 {[%clk 0:01:37]}  bxc4 {[%clk 0:00:59]} 41. d5 {[%clk 0:01:37]}  g4 {[%clk 0:00:57]} 42. dxc6 {[%clk 0:01:35]}  g3 {[%clk 0:00:56]} 43. c7 {[%clk 0:01:33]}  Kd7 {[%clk 0:00:56]} 44. h6 {[%clk 0:01:31]}  g2 {[%clk 0:00:56]} 45. h7 {[%clk 0:01:31]}  Kxc7 {[%clk 0:00:51]} 46. h8=Q {[%clk 0:01:16]}  g1=Q {[%clk 0:00:51]} 47. Qe5+ {[%clk 0:01:14]}  Kc6 {[%clk 0:00:47]} 48. Qxf5 {[%clk 0:01:12]}  Qd4 {[%clk 0:00:42]} 49. Qc5+ {[%clk 0:00:56]}  Qxc5 {[%clk 0:00:41]} 50. bxc5 {[%clk 0:00:57]}  Kxc5 {[%clk 0:00:42]} 51. Kc3 {[%clk 0:00:57]}  Kd5 {[%clk 0:00:42]} 52. Kc2 {[%clk 0:00:57]}  Kd4 {[%clk 0:00:43]} 53. Kd2 {[%clk 0:00:58]}  c3+ {[%clk 0:00:43]} 54. Kc2 {[%clk 0:00:58]}  Kc4 {[%clk 0:00:43]} 55. Kc1 {[%clk 0:00:58]}  Kc5 {[%clk 0:00:44]} 56. Kc2 {[%clk 0:00:58]}  Kb4 {[%clk 0:00:44]} 57. Kc1 {[%clk 0:00:59]}  Kb3 {[%clk 0:00:44]} 58. Kb1 {[%clk 0:00:58]}  c2+ {[%clk 0:00:45]} 59. Kc1 {[%clk 0:00:59]}  Kc3 {[%clk 0:00:45]} 1/2-1/2


[Site "https://www.chess.com"]

[Event "Titled Tuesday Blitz November 01 Late 2022"]
[White "Sjugirov, Sanan"]
[Black "Sanal, Vahap"]
[WhiteFideId "4189302"]
[BlackFideId "6300545"]
[WhiteElo "2609"]
[BlackElo "2574"]
[Result "1-0"]
[Round "08"]
[TimeControl "180+1"]
[Date "2022.11.01"]
[WhiteClock "0:00:05"]
[BlackClock "0:00:01"]

1. Nf3 {[%clk 0:03:00]}  d6 {[%clk 0:03:00]} 2. d4 {[%clk 0:02:59]}  Nf6 {[%clk 0:03:00]} 3. c4 {[%clk 0:02:55]}  g6 {[%clk 0:02:52]} 4. Nc3 {[%clk 0:02:54]}  Bg7 {[%clk 0:02:53]} 5. e4 {[%clk 0:02:54]}  Bg4 {[%clk 0:02:51]} 6. h3 {[%clk 0:02:49]}  Bxf3 {[%clk 0:02:50]} 7. Qxf3 {[%clk 0:02:50]}  Nc6 {[%clk 0:02:45]} 8. Be3 {[%clk 0:02:49]}  e5 {[%clk 0:02:45]} 9. d5 {[%clk 0:02:19]}  Nd4 {[%clk 0:02:45]} 10. Qd1 {[%clk 0:02:18]}  O-O {[%clk 0:02:45]} 11. Bd3 {[%clk 0:02:13]}  c5 {[%clk 0:02:42]} 12. dxc6 {[%clk 0:02:01]}  bxc6 {[%clk 0:02:42]} 13. b4 {[%clk 0:02:00]}  Nd7 {[%clk 0:02:39]} 14. O-O {[%clk 0:01:59]}  f5 {[%clk 0:02:39]} 15. exf5 {[%clk 0:01:54]}  gxf5 {[%clk 0:02:39]} 16. Bxd4 {[%clk 0:01:48]}  exd4 {[%clk 0:02:39]} 17. Nb1 {[%clk 0:01:40]}  Ne5 {[%clk 0:02:21]} 18. Qc2 {[%clk 0:01:38]}  f4 {[%clk 0:02:13]} 19. Nd2 {[%clk 0:01:34]}  f3 {[%clk 0:02:12]} 20. g3 {[%clk 0:01:33]}  Qd7 {[%clk 0:02:00]} 21. Kh2 {[%clk 0:01:31]}  Rf6 {[%clk 0:01:57]} 22. h4 {[%clk 0:01:13]}  Raf8 {[%clk 0:01:43]} 23. Rh1 {[%clk 0:01:04]}  Ng4+ {[%clk 0:01:35]} 24. Kg1 {[%clk 0:01:04]}  Ne3 {[%clk 0:01:35]} 25. Qa4 {[%clk 0:00:55]}  h6 {[%clk 0:01:15]} 26. h5 {[%clk 0:00:53]}  Ng4 {[%clk 0:01:08]} 27. Rh4 {[%clk 0:00:45]}  Ne5 {[%clk 0:01:04]} 28. Qc2 {[%clk 0:00:45]}  Re8 {[%clk 0:00:57]} 29. Re1 {[%clk 0:00:38]}  Nxd3 {[%clk 0:00:51]} 30. Rxe8+ {[%clk 0:00:37]}  Qxe8 {[%clk 0:00:51]} 31. Qxd3 {[%clk 0:00:37]}  Qe1+ {[%clk 0:00:43]} 32. Nf1 {[%clk 0:00:37]}  Qe2 {[%clk 0:00:40]} 33. Rxd4 {[%clk 0:00:34]}  Bf8 {[%clk 0:00:14]} 34. Rg4+ {[%clk 0:00:24]}  Bg7 {[%clk 0:00:07]} 35. Qd4 {[%clk 0:00:25]}  Rf7 {[%clk 0:00:06]} 36. Qxd6 {[%clk 0:00:24]}  Re7 {[%clk 0:00:06]} 37. Qb8+ {[%clk 0:00:09]}  Re8 {[%clk 0:00:03]} 38. Qc7 {[%clk 0:00:08]}  Re7 {[%clk 0:00:03]} 39. Qc8+ {[%clk 0:00:09]}  Re8 {[%clk 0:00:02]} 40. Qxc6 {[%clk 0:00:09]}  Re7 {[%clk 0:00:02]} 41. Qd5+ {[%clk 0:00:08]}  Kh7 {[%clk 0:00:02]} 42. Qf5+ {[%clk 0:00:08]}  Kh8 {[%clk 0:00:02]} 43. Rf4 {[%clk 0:00:09]}  Qxa2 {[%clk 0:00:01]} 44. Rxf3 {[%clk 0:00:09]}  Qxc4 {[%clk 0:00:02]} 45. Rf4 {[%clk 0:00:09]}  Qa6 {[%clk 0:00:01]} 46. Ne3 {[%clk 0:00:09]}  Qa1+ {[%clk 0:00:01]} 47. Kg2 {[%clk 0:00:09]}  Qa6 {[%clk 0:00:02]} 48. Nd5 {[%clk 0:00:09]}  Qb7 {[%clk 0:00:03]} 49. Rf3 {[%clk 0:00:10]}  Rd7 {[%clk 0:00:03]} 50. Nf4 {[%clk 0:00:09]}  Rd6 {[%clk 0:00:02]} 51. Ng6+ {[%clk 0:00:09]}  Kg8 {[%clk 0:00:03]} 52. Qg4 {[%clk 0:00:07]}  Rf6 {[%clk 0:00:03]} 53. Nf4 {[%clk 0:00:07]}  Rf8 {[%clk 0:00:03]} 54. Qe6+ {[%clk 0:00:07]}  Kh7 {[%clk 0:00:03]} 55. Qg6+ {[%clk 0:00:07]}  Kh8 {[%clk 0:00:02]} 56. Qd3 {[%clk 0:00:07]}  Kg8 {[%clk 0:00:02]} 57. b5 {[%clk 0:00:07]}  Rf7 {[%clk 0:00:02]} 58. Qd8+ {[%clk 0:00:06]}  Kh7 {[%clk 0:00:02]} 59. Qd3+ {[%clk 0:00:06]}  Kg8 {[%clk 0:00:03]} 60. Qd5 {[%clk 0:00:07]}  Qxd5 {[%clk 0:00:02]} 61. Nxd5 {[%clk 0:00:07]}  Rb7 {[%clk 0:00:03]} 62. Rb3 {[%clk 0:00:07]}  Kf7 {[%clk 0:00:03]} 63. b6 {[%clk 0:00:07]}  a6 {[%clk 0:00:02]} 64. Nc7 {[%clk 0:00:07]}  a5 {[%clk 0:00:01]} 65. Nd5 {[%clk 0:00:07]}  Ke6 {[%clk 0:00:02]} 66. Rb5 {[%clk 0:00:07]}  a4 {[%clk 0:00:01]} 67. Nf4+ {[%clk 0:00:07]}  Kd6 {[%clk 0:00:02]} 68. Ra5 {[%clk 0:00:08]}  Rxb6 {[%clk 0:00:01]} 69. Rxa4 {[%clk 0:00:08]}  Be5 {[%clk 0:00:02]} 70. Nd3 {[%clk 0:00:08]}  Bf6 {[%clk 0:00:02]} 71. Rg4 {[%clk 0:00:08]}  Ke6 {[%clk 0:00:02]} 72. Rg6 {[%clk 0:00:08]}  Kf7 {[%clk 0:00:02]} 73. Rxh6 {[%clk 0:00:08]}  Rb3 {[%clk 0:00:02]} 74. Nc5 {[%clk 0:00:08]}  Rb2 {[%clk 0:00:02]} 75. Ne4 {[%clk 0:00:07]}  Bd4 {[%clk 0:00:03]} 76. Rd6 {[%clk 0:00:07]}  Be5 {[%clk 0:00:02]} 77. Rd5 {[%clk 0:00:07]}  Ke6 {[%clk 0:00:02]} 78. Rd3 {[%clk 0:00:07]}  Kf5 {[%clk 0:00:02]} 79. Nc5 {[%clk 0:00:07]}  Kg5 {[%clk 0:00:02]} 80. Rd5 {[%clk 0:00:07]}  Kg4 {[%clk 0:00:01]} 81. Nd3 {[%clk 0:00:05]} 1-0


[Site "https://www.chess.com"]

[Event "Titled Tuesday Blitz November 01 Late 2022"]
[White "Souleidis, Georgios"]
[Black "Leitao, Rafael"]
[WhiteFideId "4206827"]
[BlackFideId "2101246"]
[WhiteElo "2401"]
[BlackElo "2609"]
[Result "1-0"]
[Round "08"]
[TimeControl "180+1"]
[Date "2022.11.02"]
[WhiteClock "0:00:06"]
[BlackClock "0:00:33"]

1. e4 {[%clk 0:03:00]}  c5 {[%clk 0:02:58]} 2. Be2 {[%clk 0:03:00]}  Nc6 {[%clk 0:02:57]} 3. d3 {[%clk 0:03:01]}  d6 {[%clk 0:02:57]} 4. f4 {[%clk 0:03:02]}  g6 {[%clk 0:02:57]} 5. Nf3 {[%clk 0:03:02]}  Bg7 {[%clk 0:02:58]} 6. O-O {[%clk 0:03:03]}  Nf6 {[%clk 0:02:58]} 7. c3 {[%clk 0:03:03]}  O-O {[%clk 0:02:58]} 8. Kh1 {[%clk 0:03:04]}  Rb8 {[%clk 0:02:52]} 9. Be3 {[%clk 0:03:03]}  b5 {[%clk 0:02:51]} 10. a3 {[%clk 0:03:03]}  Bb7 {[%clk 0:02:42]} 11. Nbd2 {[%clk 0:03:03]}  a5 {[%clk 0:02:22]} 12. d4 {[%clk 0:02:59]}  cxd4 {[%clk 0:02:15]} 13. cxd4 {[%clk 0:03:00]}  d5 {[%clk 0:02:00]} 14. e5 {[%clk 0:02:57]}  Ne4 {[%clk 0:02:01]} 15. Bxb5 {[%clk 0:02:24]}  Qb6 {[%clk 0:01:58]} 16. Bd3 {[%clk 0:02:10]}  Ba6 {[%clk 0:01:29]} 17. Bxa6 {[%clk 0:01:59]}  Qxa6 {[%clk 0:01:26]} 18. Nxe4 {[%clk 0:01:40]}  dxe4 {[%clk 0:01:26]} 19. Ng5 {[%clk 0:01:39]}  Rfd8 {[%clk 0:01:07]} 20. Nxe4 {[%clk 0:01:25]}  Nxd4 {[%clk 0:01:06]} 21. Bxd4 {[%clk 0:01:05]}  Qc4 {[%clk 0:01:07]} 22. Qc1 {[%clk 0:00:44]}  Rxd4 {[%clk 0:00:58]} 23. Qxc4 {[%clk 0:00:30]}  Rxc4 {[%clk 0:00:57]} 24. Nc3 {[%clk 0:00:16]}  Rxb2 {[%clk 0:00:56]} 25. Rac1 {[%clk 0:00:16]}  Bf8 {[%clk 0:00:52]} 26. Nd5 {[%clk 0:00:13]}  Rxc1 {[%clk 0:00:51]} 27. Rxc1 {[%clk 0:00:13]}  Ra2 {[%clk 0:00:51]} 28. h4 {[%clk 0:00:09]}  Rxa3 {[%clk 0:00:50]} 29. Rc8 {[%clk 0:00:09]}  Kg7 {[%clk 0:00:46]} 30. Nc7 {[%clk 0:00:09]}  a4 {[%clk 0:00:41]} 31. Ne8+ {[%clk 0:00:08]}  Kh6 {[%clk 0:00:41]} 32. Ra8 {[%clk 0:00:07]}  Kh5 {[%clk 0:00:40]} 33. Nc7 {[%clk 0:00:05]}  Bh6 {[%clk 0:00:39]} 34. Nd5 {[%clk 0:00:01]}  Kg4 {[%clk 0:00:39]} 35. Kh2 {[%clk 0:00:01]}  Bxf4+ {[%clk 0:00:38]} 36. Nxf4 {[%clk 0:00:02]}  Kxf4 {[%clk 0:00:38]} 37. Ra7 {[%clk 0:00:01]}  Kxe5 {[%clk 0:00:37]} 38. Rxe7+ {[%clk 0:00:02]}  Kf6 {[%clk 0:00:37]} 39. Ra7 {[%clk 0:00:02]}  h5 {[%clk 0:00:38]} 40. g3 {[%clk 0:00:02]}  Ra2+ {[%clk 0:00:38]} 41. Kh3 {[%clk 0:00:03]}  Kg7 {[%clk 0:00:38]} 42. Ra6 {[%clk 0:00:04]}  f6 {[%clk 0:00:37]} 43. Ra7+ {[%clk 0:00:05]}  Kf8 {[%clk 0:00:37]} 44. Ra6 {[%clk 0:00:06]}  Kf7 {[%clk 0:00:37]} 45. Ra7+ {[%clk 0:00:07]}  Ke6 {[%clk 0:00:37]} 46. Ra6+ {[%clk 0:00:08]}  Kf5 {[%clk 0:00:38]} 47. Ra5+ {[%clk 0:00:08]}  Ke4 {[%clk 0:00:36]} 48. Ra6 {[%clk 0:00:09]}  g5 {[%clk 0:00:33]} 49. hxg5 {[%clk 0:00:06]} 1-0


[Site "https://www.chess.com"]